[Event "Betsys MČR v online bleskovém šachu 2021"]
[Site "Chess.com"]
[Date "2021.04.17"]
[Round "1"]
[White "matyson523"]
[Black "pedroholly22"]
[Result "0-1"]
[WhiteElo "1738"]
[BlackElo "2392"]
[TimeControl "180+1"]
[EndTime "9:06:22 PDT"]
[Termination "Uživatel pedroholly22 zvítězil po vzdání soupeře"]

1. e4 {[%clk 0:03:00.9]} 1... c5 {[%clk 0:02:58.1]} 2. Nf3 {[%clk 0:03:00.5]}
2... d6 {[%clk 0:02:57.8]} 3. d4 {[%clk 0:02:59.2]} 3... cxd4 {[%clk 0:02:58.7]}
4. Qxd4 {[%clk 0:02:58.4]} 4... a6 {[%clk 0:02:51.9]} 5. Bg5 {[%clk 0:02:54.8]}
5... Nc6 {[%clk 0:02:50.8]} 6. Qd2 {[%clk 0:02:54.7]} 6... g6 {[%clk 0:02:44.8]}
7. Nc3 {[%clk 0:02:54]} 7... Bg7 {[%clk 0:02:44.5]} 8. O-O-O {[%clk 0:02:48]}
8... Qa5 {[%clk 0:02:40.8]} 9. a3 {[%clk 0:02:33.1]} 9... h6 {[%clk 0:02:19]}
10. Be3 {[%clk 0:02:31.4]} 10... Nf6 {[%clk 0:02:04.8]} 11. Nd4 {[%clk
0:02:28.8]} 11... Ng4 {[%clk 0:01:58.1]} 12. Bc4 {[%clk 0:02:19.9]} 12... Nxe3
{[%clk 0:01:53.6]} 13. fxe3 {[%clk 0:02:19.5]} 13... h5 {[%clk 0:01:42.9]} 14.
Rhf1 {[%clk 0:02:13.9]} 14... Nxd4 {[%clk 0:01:35.1]} 15. Bxf7+ {[%clk
0:02:08.6]} 15... Kd8 {[%clk 0:01:30.7]} 16. Bxg6 {[%clk 0:01:58.6]} 16... Nc6
{[%clk 0:01:25.2]} 17. Rf7 {[%clk 0:01:44.3]} 17... Bxc3 {[%clk 0:01:19.1]} 18.
Qxc3 {[%clk 0:01:42.7]} 18... Qxc3 {[%clk 0:01:18.5]} 19. bxc3 {[%clk
0:01:43.6]} 19... Ne5 {[%clk 0:01:16.9]} 20. Rg7 {[%clk 0:01:41.2]} 20... Nxg6
{[%clk 0:01:16.1]} 21. Rxg6 {[%clk 0:01:42.1]} 21... Bg4 {[%clk 0:01:10.4]} 22.
Rd2 {[%clk 0:01:38.9]} 22... Kd7 {[%clk 0:01:10.2]} 23. h3 {[%clk 0:01:38]}
23... Be6 {[%clk 0:01:09.7]} 24. e5 {[%clk 0:01:37.6]} 24... Rag8 {[%clk
0:01:08.8]} 25. Rxg8 {[%clk 0:01:35.7]} 25... Rxg8 {[%clk 0:01:08.5]} 26. exd6
{[%clk 0:01:36.4]} 26... exd6 {[%clk 0:01:08.7]} 27. e4 {[%clk 0:01:35.7]} 27...
Ke7 {[%clk 0:01:02.8]} 28. Rf2 {[%clk 0:01:31.3]} 28... Rg3 {[%clk 0:01:00.4]}
29. Kd2 {[%clk 0:01:30.3]} 29... Rg5 {[%clk 0:00:59.1]} 30. Ke3 {[%clk
0:01:16.6]} 30... Ra5 {[%clk 0:00:57.2]} 31. Kd4 {[%clk 0:01:15.8]} 31... Ra4+
{[%clk 0:00:55]} 32. Kd3 {[%clk 0:01:15.4]} 32... Rxa3 {[%clk 0:00:53.6]} 33.
Rf4 {[%clk 0:01:14.6]} 33... Ra5 {[%clk 0:00:52]} 34. h4 {[%clk 0:01:13.8]}
34... Rc5 {[%clk 0:00:49.3]} 35. g3 {[%clk 0:01:10.9]} 35... a5 {[%clk
0:00:49.2]} 36. Rf1 {[%clk 0:01:08.8]} 36... Bc4+ {[%clk 0:00:47.6]} 0-1

[Event "Betsys MČR v online bleskovém šachu 2021"]
[Site "Chess.com"]
[Date "2021.04.17"]
[Round "1"]
[White "penguinorodriguez"]
[Black "RousekJan"]
[Result "1-0"]
[WhiteElo "2550"]
[BlackElo "1796"]
[TimeControl "180+1"]
[EndTime "9:06:24 PDT"]
[Termination "Uživatel penguinorodriguez zvítězil po vzdání soupeře"]

1. d4 {[%clk 0:02:59]} 1... d5 {[%clk 0:02:57.9]} 2. Nf3 {[%clk 0:02:58.6]} 2...
Nc6 {[%clk 0:02:55.9]} 3. Bf4 {[%clk 0:02:58.1]} 3... Nf6 {[%clk 0:02:48.3]} 4.
e3 {[%clk 0:02:57.3]} 4... e6 {[%clk 0:02:47.8]} 5. c4 {[%clk 0:02:57.6]} 5...
Bd6 {[%clk 0:02:39.8]} 6. Bg3 {[%clk 0:02:56.3]} 6... Ne4 {[%clk 0:02:19.6]} 7.
Nc3 {[%clk 0:02:52.5]} 7... Nxg3 {[%clk 0:02:01.8]} 8. hxg3 {[%clk 0:02:51.3]}
8... Bb4 {[%clk 0:02:01.4]} 9. Qc2 {[%clk 0:02:49]} 9... h6 {[%clk 0:01:40.3]}
10. a3 {[%clk 0:02:46.1]} 10... Bxc3+ {[%clk 0:01:38.6]} 11. Qxc3 {[%clk
0:02:47]} 11... dxc4 {[%clk 0:01:38.3]} 12. Bxc4 {[%clk 0:02:45.2]} 12... Bd7
{[%clk 0:01:23.5]} 13. O-O-O {[%clk 0:02:43.7]} 13... Qe7 {[%clk 0:01:22.2]} 14.
d5 {[%clk 0:02:38.1]} 14... exd5 {[%clk 0:01:19]} 15. Bxd5 {[%clk 0:02:35.9]}
15... O-O-O {[%clk 0:01:17.1]} 16. Qxg7 {[%clk 0:02:33.8]} 16... Bf5 {[%clk
0:00:14.3]} 17. Qc3 {[%clk 0:02:20.5]} 17... Rhe8 {[%clk 0:00:03.4]} 18. Bxc6
{[%clk 0:02:16]} 18... bxc6 {[%clk 0:00:03.3]} 19. Nd4 {[%clk 0:02:16.6]} 19...
Be4 {[%clk 0:00:01.8]} 20. f3 {[%clk 0:02:16.5]} 20... Bd5 {[%clk 0:00:02.3]}
21. e4 {[%clk 0:02:17]} 21... Bxe4 {[%clk 0:00:01.4]} 22. fxe4 {[%clk
0:02:11.6]} 22... Qxe4 {[%clk 0:00:02.3]} 23. Nxc6 {[%clk 0:02:08.5]} 23...
Rxd1+ {[%clk 0:00:03.2]} 24. Rxd1 {[%clk 0:02:08.3]} 24... Qe2 {[%clk
0:00:01.7]} 25. Qc2 {[%clk 0:01:40.3]} 25... Qe3+ {[%clk 0:00:01.6]} 26. Kb1
{[%clk 0:01:39.9]} 26... Qe6 {[%clk 0:00:02.2]} 27. Nxa7+ {[%clk 0:01:37.2]}
27... Kb7 {[%clk 0:00:02.7]} 28. Nb5 {[%clk 0:01:38.1]} 28... Ra8 {[%clk
0:00:01.1]} 29. Qxc7+ {[%clk 0:01:36.8]} 29... Ka6 {[%clk 0:00:02]} 30. Rd6+
{[%clk 0:01:36.6]} 30... Kxb5 {[%clk 0:00:01.9]} 31. Rxe6 {[%clk 0:01:36.4]}
31... fxe6 {[%clk 0:00:02.8]} 32. Qb7+ {[%clk 0:01:36.7]} 1-0

[Event "Betsys MČR v online bleskovém šachu 2021"]
[Site "Chess.com"]
[Date "2021.04.17"]
[Round "1"]
[White "5265"]
[Black "Xslyepov"]
[Result "1-0"]
[WhiteElo "1596"]
[BlackElo "2178"]
[TimeControl "180+1"]
[EndTime "9:06:25 PDT"]
[Termination "Uživatel 5265 zvítězil matem"]

1. e4 {[%clk 0:03:00.9]} 1... e5 {[%clk 0:02:55.9]} 2. Nf3 {[%clk 0:02:59.4]}
2... Nc6 {[%clk 0:02:56]} 3. Bc4 {[%clk 0:02:57.8]} 3... Nf6 {[%clk 0:02:56]} 4.
Ng5 {[%clk 0:02:57.8]} 4... d5 {[%clk 0:02:56.4]} 5. exd5 {[%clk 0:02:58.2]}
5... b5 {[%clk 0:02:56.7]} 6. dxc6 {[%clk 0:02:57.6]} 6... bxc4 {[%clk
0:02:56.6]} 7. Qe2 {[%clk 0:02:57.6]} 7... Qd5 {[%clk 0:02:53.9]} 8. O-O {[%clk
0:02:57.8]} 8... Qxc6 {[%clk 0:02:51.8]} 9. Qxe5+ {[%clk 0:02:57.1]} 9... Be6
{[%clk 0:02:49.6]} 10. Nxe6 {[%clk 0:02:55.8]} 10... fxe6 {[%clk 0:02:49.8]} 11.
Re1 {[%clk 0:02:53.8]} 11... Kf7 {[%clk 0:02:49.6]} 12. Nc3 {[%clk 0:02:45.4]}
12... Re8 {[%clk 0:02:48.7]} 13. b3 {[%clk 0:02:45]} 13... Bd6 {[%clk
0:02:47.3]} 14. Qe3 {[%clk 0:02:44.8]} 14... Bxh2+ {[%clk 0:02:45.5]} 15. Kh1
{[%clk 0:02:40.9]} 15... h5 {[%clk 0:02:37.8]} 16. Ne4 {[%clk 0:02:35.2]} 16...
Nxe4 {[%clk 0:02:32.3]} 17. Qf3+ {[%clk 0:02:33.3]} 17... Kg8 {[%clk 0:02:25.6]}
18. Kxh2 {[%clk 0:02:32.3]} 18... Qd6+ {[%clk 0:02:23]} 19. g3 {[%clk
0:02:31.2]} 19... Rf8 {[%clk 0:02:16]} 20. Qxe4 {[%clk 0:02:21.7]} 20... Rxf2+
{[%clk 0:02:15.5]} 21. Kh3 {[%clk 0:02:21.5]} 21... Rf6 {[%clk 0:02:05.9]} 22.
Bb2 {[%clk 0:02:19.7]} 22... h4 {[%clk 0:02:01.5]} 23. gxh4 {[%clk 0:02:11.1]}
23... Rfh6 {[%clk 0:01:42.1]} 24. Kg2 {[%clk 0:01:36.5]} 24... Rxh4 {[%clk
0:01:39.6]} 25. Qxe6+ {[%clk 0:01:35.9]} 25... Qxe6 {[%clk 0:01:39.1]} 26. Rxe6
{[%clk 0:01:35.5]} 26... Rh2+ {[%clk 0:01:33.9]} 27. Kf3 {[%clk 0:01:34.9]}
27... R8h3+ {[%clk 0:01:31]} 28. Kg4 {[%clk 0:01:33.3]} 28... Rh4+ {[%clk
0:01:31.4]} 29. Kf5 {[%clk 0:01:28.5]} 29... Kf7 {[%clk 0:01:24.9]} 30. Rc6
{[%clk 0:01:22]} 30... Rh5+ {[%clk 0:01:10.8]} 31. Ke4 {[%clk 0:01:20.6]} 31...
R2h4+ {[%clk 0:01:03.8]} 32. Ke3 {[%clk 0:01:19.3]} 32... Rh3+ {[%clk
0:01:03.8]} 33. Kd4 {[%clk 0:01:19.2]} 33... R5h4+ {[%clk 0:01:00.2]} 34. Kc5
{[%clk 0:01:18.4]} 34... c3 {[%clk 0:00:57.8]} 35. Bxc3 {[%clk 0:01:16.6]} 35...
Rh5+ {[%clk 0:00:57.2]} 36. Kb4 {[%clk 0:01:16.7]} 36... a5+ {[%clk 0:00:56.2]}
37. Ka3 {[%clk 0:01:16.5]} 37... g5 {[%clk 0:00:56]} 38. Rxc7+ {[%clk
0:01:16.4]} 38... Ke6 {[%clk 0:00:56.3]} 39. Re1+ {[%clk 0:01:16.3]} 39... Kf5
{[%clk 0:00:53.3]} 40. Rc5+ {[%clk 0:01:15.8]} 40... Kf4 {[%clk 0:00:51.5]} 41.
Rf1+ {[%clk 0:01:14.5]} 41... Ke4 {[%clk 0:00:51.6]} 42. Re5# {[%clk 0:01:11.4]}
1-0

[Event "Betsys MČR v online bleskovém šachu 2021"]
[Site "Chess.com"]
[Date "2021.04.17"]
[Round "1"]
[White "androidddd"]
[Black "krystofkrizek1"]
[Result "0-1"]
[WhiteElo "1411"]
[BlackElo "2097"]
[TimeControl "180+1"]
[EndTime "9:06:25 PDT"]
[Termination "Uživatel krystofkrizek1 zvítězil matem"]

1. e4 {[%clk 0:02:55.4]} 1... g6 {[%clk 0:02:59.9]} 2. d4 {[%clk 0:02:53.8]}
2... d5 {[%clk 0:03:00]} 3. e5 {[%clk 0:02:51.6]} 3... c5 {[%clk 0:02:59.8]} 4.
c3 {[%clk 0:02:48.5]} 4... Nc6 {[%clk 0:02:59.3]} 5. f4 {[%clk 0:02:42.2]} 5...
Nh6 {[%clk 0:02:51.6]} 6. Nf3 {[%clk 0:02:36]} 6... Bg4 {[%clk 0:02:43.6]} 7. h3
{[%clk 0:02:30.5]} 7... Bxf3 {[%clk 0:02:42]} 8. gxf3 {[%clk 0:02:13.9]} 8... e6
{[%clk 0:02:27.9]} 9. Be3 {[%clk 0:02:00.2]} 9... Qh4+ {[%clk 0:02:22.6]} 10.
Kd2 {[%clk 0:01:53.7]} 10... Nf5 {[%clk 0:02:17.5]} 11. Bb5 {[%clk 0:01:41.3]}
11... Nxe3 {[%clk 0:01:55]} 12. Kxe3 {[%clk 0:01:35.9]} 12... Bh6 {[%clk
0:01:55.1]} 13. Re1 {[%clk 0:01:26.1]} 13... Qxf4+ {[%clk 0:01:47.8]} 14. Kd3
{[%clk 0:01:24.3]} 14... cxd4 {[%clk 0:01:29.7]} 15. Bxc6+ {[%clk 0:01:16.1]}
15... bxc6 {[%clk 0:01:30.6]} 16. cxd4 {[%clk 0:01:15.8]} 16... O-O {[%clk
0:01:11.9]} 17. Nd2 {[%clk 0:01:06.8]} 17... Rab8 {[%clk 0:00:50.9]} 18. Nb3
{[%clk 0:01:00.5]} 18... c5 {[%clk 0:00:39.3]} 19. Nxc5 {[%clk 0:00:45.4]} 19...
Rxb2 {[%clk 0:00:36.2]} 20. Re2 {[%clk 0:00:42.1]} 20... Qxf3+ {[%clk
0:00:32.3]} 21. Re3 {[%clk 0:00:40.6]} 21... Qxe3# {[%clk 0:00:31.6]} 0-1

[Event "Betsys MČR v online bleskovém šachu 2021"]
[Site "Chess.com"]
[Date "2021.04.17"]
[Round "1"]
[White "berny643"]
[Black "stripe122"]
[Result "1-0"]
[WhiteElo "2526"]
[BlackElo "1788"]
[TimeControl "180+1"]
[EndTime "9:06:26 PDT"]
[Termination "Uživatel berny643 zvítězil na čas"]

1. d4 {[%clk 0:03:00.3]} 1... d5 {[%clk 0:02:58.6]} 2. c4 {[%clk 0:03:00.7]}
2... c6 {[%clk 0:02:57.4]} 3. Nf3 {[%clk 0:02:57.9]} 3... Nf6 {[%clk 0:02:55.5]}
4. e3 {[%clk 0:02:57.5]} 4... Bg4 {[%clk 0:02:42.2]} 5. Nbd2 {[%clk 0:02:57.3]}
5... e6 {[%clk 0:02:39.1]} 6. Bd3 {[%clk 0:02:56]} 6... Be7 {[%clk 0:02:29.6]}
7. b3 {[%clk 0:02:52.2]} 7... O-O {[%clk 0:02:28.5]} 8. Bb2 {[%clk 0:02:52.3]}
8... Nbd7 {[%clk 0:02:19.7]} 9. O-O {[%clk 0:02:51.3]} 9... Rc8 {[%clk
0:02:17.1]} 10. Qe2 {[%clk 0:02:49.4]} 10... c5 {[%clk 0:02:07.9]} 11. Rfd1
{[%clk 0:02:35.7]} 11... cxd4 {[%clk 0:01:46.8]} 12. exd4 {[%clk 0:02:34.1]}
12... dxc4 {[%clk 0:01:41.5]} 13. bxc4 {[%clk 0:02:32.9]} 13... Qa5 {[%clk
0:01:30.2]} 14. h3 {[%clk 0:02:27.3]} 14... Bh5 {[%clk 0:01:26.5]} 15. d5 {[%clk
0:02:26]} 15... Nc5 {[%clk 0:01:03.6]} 16. Nb3 {[%clk 0:02:25.3]} 16... Qb6
{[%clk 0:00:38.6]} 17. Bd4 {[%clk 0:02:22.5]} 17... Rfe8 {[%clk 0:00:20.3]} 18.
Rab1 {[%clk 0:02:19.7]} 18... Qc7 {[%clk 0:00:19.2]} 19. Be5 {[%clk 0:01:21.2]}
19... Qd7 {[%clk 0:00:08.7]} 20. d6 {[%clk 0:01:12.4]} 20... Bxd6 {[%clk
0:00:01.5]} 21. Bxd6 {[%clk 0:01:12.3]} 1-0

[Event "Betsys MČR v online bleskovém šachu 2021"]
[Site "Chess.com"]
[Date "2021.04.17"]
[Round "1"]
[White "sharpi5135"]
[Black "sipos88"]
[Result "0-1"]
[WhiteElo "782"]
[BlackElo "1871"]
[TimeControl "180+1"]
[EndTime "9:06:26 PDT"]
[Termination "Uživatel sipos88 zvítězil na čas"]

1. e4 {[%clk 0:02:55.9]} 1... e5 {[%clk 0:02:57.5]} 2. d3 {[%clk 0:02:44.1]}
2... Bc5 {[%clk 0:02:53.3]} 3. Nf3 {[%clk 0:02:41.9]} 3... Nc6 {[%clk
0:02:52.6]} 4. Nc3 {[%clk 0:02:40.7]} 4... d6 {[%clk 0:02:52.5]} 5. Nd5 {[%clk
0:02:29]} 5... Be6 {[%clk 0:02:45.3]} 6. Bd2 {[%clk 0:02:27.3]} 6... Nge7 {[%clk
0:02:42.6]} 7. Nxe7 {[%clk 0:02:25.1]} 7... Qxe7 {[%clk 0:02:42.8]} 8. Qe2
{[%clk 0:02:20.2]} 8... O-O {[%clk 0:02:33.3]} 9. g3 {[%clk 0:02:19]} 9... f5
{[%clk 0:02:32.5]} 10. Bg2 {[%clk 0:02:18.2]} 10... fxe4 {[%clk 0:02:30.3]} 11.
dxe4 {[%clk 0:02:11.8]} 11... Nd4 {[%clk 0:02:25.7]} 12. Nxd4 {[%clk 0:01:52.7]}
12... Bxd4 {[%clk 0:02:25.5]} 13. c3 {[%clk 0:01:52]} 13... Bxf2+ {[%clk
0:02:22.4]} 14. Kd1 {[%clk 0:01:46.6]} 14... Bb6 {[%clk 0:02:21.2]} 15. h3
{[%clk 0:01:36.4]} 15... Rf2 {[%clk 0:02:20.4]} 16. Qh5 {[%clk 0:01:02.6]} 16...
Rxg2 {[%clk 0:02:15.2]} 17. Rf1 {[%clk 0:01:00.1]} 17... Rf8 {[%clk 0:02:12.3]}
18. Rxf8+ {[%clk 0:00:57.5]} 18... Qxf8 {[%clk 0:02:11.7]} 19. Kc2 {[%clk
0:00:55.6]} 19... Be3 {[%clk 0:02:09]} 20. Rd1 {[%clk 0:00:44.8]} 20... Rxd2+
{[%clk 0:02:08.4]} 21. Rxd2 {[%clk 0:00:43.9]} 21... Bxd2 {[%clk 0:02:08.8]} 22.
Kxd2 {[%clk 0:00:43.1]} 22... Bxa2 {[%clk 0:02:05.7]} 23. Kc2 {[%clk 0:00:40.4]}
23... Bc4 {[%clk 0:02:05.5]} 24. Qd1 {[%clk 0:00:30.7]} 24... Qf2+ {[%clk
0:02:03.7]} 25. Qd2 {[%clk 0:00:22.7]} 25... Qxd2+ {[%clk 0:02:03.4]} 26. Kxd2
{[%clk 0:00:21.9]} 26... d5 {[%clk 0:02:04]} 27. Ke3 {[%clk 0:00:21.4]} 27... c5
{[%clk 0:02:00.5]} 28. g4 {[%clk 0:00:18.4]} 28... d4+ {[%clk 0:02:00.4]} 29.
cxd4 {[%clk 0:00:17.7]} 29... cxd4+ {[%clk 0:02:00.8]} 30. Kd2 {[%clk
0:00:17.2]} 30... Kf7 {[%clk 0:01:59.6]} 31. h4 {[%clk 0:00:15.9]} 31... g5
{[%clk 0:01:59.2]} 32. hxg5 {[%clk 0:00:14.6]} 32... Kg6 {[%clk 0:01:59.2]} 33.
Kc2 {[%clk 0:00:10.5]} 33... Kxg5 {[%clk 0:01:59.3]} 34. b3 {[%clk 0:00:10.2]}
34... Bxb3+ {[%clk 0:01:58.8]} 35. Kxb3 {[%clk 0:00:09.2]} 35... Kxg4 {[%clk
0:01:59.3]} 36. Kc2 {[%clk 0:00:08.2]} 36... h5 {[%clk 0:01:56.8]} 37. Kd2
{[%clk 0:00:07.6]} 37... h4 {[%clk 0:01:57.7]} 38. Kd3 {[%clk 0:00:06.6]} 38...
h3 {[%clk 0:01:58.6]} 39. Ke2 {[%clk 0:00:06]} 39... h2 {[%clk 0:01:58.9]} 40.
Kf2 {[%clk 0:00:03.8]} 40... h1=Q {[%clk 0:01:59]} 0-1

[Event "Betsys MČR v online bleskovém šachu 2021"]
[Site "Chess.com"]
[Date "2021.04.17"]
[Round "1"]
[White "Simaril76"]
[Black "Hapinka"]
[Result "0-1"]
[WhiteElo "708"]
[BlackElo "1855"]
[TimeControl "180+1"]
[EndTime "9:06:28 PDT"]
[Termination "Uživatel Hapinka zvítězil po vzdání soupeře"]

1. e4 {[%clk 0:02:56]} 1... e5 {[%clk 0:02:59.2]} 2. Nf3 {[%clk 0:02:56.2]} 2...
Nc6 {[%clk 0:02:58.9]} 3. d4 {[%clk 0:02:55.8]} 3... exd4 {[%clk 0:02:53.2]} 4.
Nxd4 {[%clk 0:02:54.4]} 4... Qf6 {[%clk 0:02:49]} 5. c3 {[%clk 0:02:47.2]} 5...
Bc5 {[%clk 0:02:46.1]} 6. Be3 {[%clk 0:02:46.8]} 6... Nge7 {[%clk 0:02:42.7]} 7.
Be2 {[%clk 0:02:47]} 7... O-O {[%clk 0:02:41.5]} 8. O-O {[%clk 0:02:47]} 8...
Bb6 {[%clk 0:02:29.6]} 9. Nd2 {[%clk 0:02:38.7]} 9... Nxd4 {[%clk 0:02:25.7]}
10. cxd4 {[%clk 0:02:29.1]} 10... Nc6 {[%clk 0:01:59.2]} 11. Nf3 {[%clk
0:02:28]} 11... d6 {[%clk 0:01:56.5]} 12. Qd3 {[%clk 0:02:16.8]} 12... Bg4
{[%clk 0:01:47.2]} 13. h3 {[%clk 0:02:05.3]} 13... Bxf3 {[%clk 0:01:46.8]} 14.
Bxf3 {[%clk 0:02:03.3]} 14... Nxd4 {[%clk 0:01:46.5]} 15. Rad1 {[%clk
0:01:54.2]} 15... Nxf3+ {[%clk 0:01:45.5]} 16. gxf3 {[%clk 0:01:49.1]} 16...
Qxf3 {[%clk 0:01:39.2]} 17. Bxb6 {[%clk 0:01:42.6]} 17... Qxd3 {[%clk
0:01:37.9]} 18. Rxd3 {[%clk 0:01:41]} 18... axb6 {[%clk 0:01:38.1]} 19. Rfd1
{[%clk 0:01:38]} 19... Rxa2 {[%clk 0:01:36.1]} 20. Rb3 {[%clk 0:01:32.3]} 20...
Re8 {[%clk 0:01:34.4]} 21. f3 {[%clk 0:01:29.9]} 21... g6 {[%clk 0:01:33.8]} 22.
Kf2 {[%clk 0:01:29.4]} 22... Re5 {[%clk 0:01:31.5]} 23. Rdd3 {[%clk 0:01:10.2]}
23... Rc5 {[%clk 0:01:30.1]} 24. Rd2 {[%clk 0:01:03]} 24... Kg7 {[%clk
0:01:27.3]} 25. Ke3 {[%clk 0:01:03.2]} 25... f5 {[%clk 0:01:25.6]} 26. f4 {[%clk
0:00:56.8]} 26... fxe4 {[%clk 0:01:24.8]} 27. Kxe4 {[%clk 0:00:55.4]} 27... Ra4+
{[%clk 0:01:24.7]} 28. Rd4 {[%clk 0:00:52.5]} 28... Rxd4+ {[%clk 0:01:23.9]} 29.
Kxd4 {[%clk 0:00:52.3]} 29... Kf6 {[%clk 0:01:20.2]} 30. Rc3 {[%clk 0:00:40.8]}
30... Rxc3 {[%clk 0:01:19.7]} 31. bxc3 {[%clk 0:00:40.2]} 31... Kf5 {[%clk
0:01:19.5]} 32. Kd5 {[%clk 0:00:37.4]} 32... Kxf4 {[%clk 0:01:18.6]} 33. Ke6
{[%clk 0:00:36.4]} 33... Ke4 {[%clk 0:01:16.3]} 34. c4 {[%clk 0:00:30.5]} 34...
Kd4 {[%clk 0:01:14.6]} 0-1

[Event "Betsys MČR v online bleskovém šachu 2021"]
[Site "Chess.com"]
[Date "2021.04.17"]
[Round "1"]
[White "polik1112"]
[Black "Tynano"]
[Result "0-1"]
[WhiteElo "1494"]
[BlackElo "2143"]
[TimeControl "180+1"]
[EndTime "9:06:29 PDT"]
[Termination "Uživatel Tynano zvítězil matem"]

1. e4 {[%clk 0:02:58.4]} 1... e5 {[%clk 0:02:59.7]} 2. Nf3 {[%clk 0:02:58]} 2...
Nc6 {[%clk 0:02:59.8]} 3. Bb5 {[%clk 0:02:57.4]} 3... f5 {[%clk 0:02:59.4]} 4.
Nc3 {[%clk 0:02:47.3]} 4... fxe4 {[%clk 0:02:57.5]} 5. Nxe4 {[%clk 0:02:46.7]}
5... Nf6 {[%clk 0:02:57.6]} 6. d3 {[%clk 0:02:38.6]} 6... d5 {[%clk 0:02:42.5]}
7. Nxf6+ {[%clk 0:02:32.2]} 7... gxf6 {[%clk 0:02:34.9]} 8. Bd2 {[%clk
0:02:26.2]} 8... Be6 {[%clk 0:02:29.6]} 9. d4 {[%clk 0:02:10.6]} 9... e4 {[%clk
0:02:27.1]} 10. Ng1 {[%clk 0:01:58.1]} 10... Qd7 {[%clk 0:02:24.9]} 11. c3
{[%clk 0:01:51.7]} 11... Bd6 {[%clk 0:02:19.9]} 12. f3 {[%clk 0:01:50.1]} 12...
a6 {[%clk 0:02:14.2]} 13. Ba4 {[%clk 0:01:48.1]} 13... b5 {[%clk 0:02:13.2]} 14.
Bc2 {[%clk 0:01:47.6]} 14... exf3 {[%clk 0:01:52.7]} 15. Nxf3 {[%clk 0:01:46.8]}
15... O-O-O {[%clk 0:01:48.1]} 16. Qe2 {[%clk 0:01:26.5]} 16... Bg4 {[%clk
0:01:45.6]} 17. h3 {[%clk 0:01:21.7]} 17... Rde8 {[%clk 0:01:40.4]} 18. Be3
{[%clk 0:01:21.3]} 18... Bf4 {[%clk 0:01:32.1]} 19. Kf2 {[%clk 0:01:12.9]} 19...
Rxe3 {[%clk 0:01:26.7]} 20. Qf1 {[%clk 0:00:38.4]} 20... Bxf3 {[%clk 0:01:24.3]}
21. gxf3 {[%clk 0:00:37.3]} 21... Kb7 {[%clk 0:01:14.6]} 22. Re1 {[%clk
0:00:24.8]} 22... Rhe8 {[%clk 0:01:12.2]} 23. Rxe3 {[%clk 0:00:17.8]} 23...
Bxe3+ {[%clk 0:01:11.9]} 24. Kg2 {[%clk 0:00:15.4]} 24... Qg7+ {[%clk
0:01:11.5]} 25. Kh2 {[%clk 0:00:14]} 25... Bf4# {[%clk 0:01:11.7]} 0-1

[Event "Betsys MČR v online bleskovém šachu 2021"]
[Site "Chess.com"]
[Date "2021.04.17"]
[Round "1"]
[White "Bolavey_Kotnik"]
[Black "lockerbieQ"]
[Result "1-0"]
[WhiteElo "2386"]
[BlackElo "1737"]
[TimeControl "180+1"]
[EndTime "9:06:31 PDT"]
[Termination "Uživatel Bolavey_Kotnik zvítězil matem"]

1. e4 {[%clk 0:02:59.7]} 1... c5 {[%clk 0:02:53.4]} 2. Nf3 {[%clk 0:02:54.8]}
2... d6 {[%clk 0:02:53.4]} 3. d4 {[%clk 0:02:54.5]} 3... cxd4 {[%clk 0:02:53.4]}
4. Nxd4 {[%clk 0:02:55.4]} 4... Nf6 {[%clk 0:02:54]} 5. Nc3 {[%clk 0:02:55.3]}
5... a6 {[%clk 0:02:54.2]} 6. Be2 {[%clk 0:02:54.5]} 6... e5 {[%clk 0:02:53.5]}
7. Nb3 {[%clk 0:02:54.6]} 7... Be6 {[%clk 0:02:53.6]} 8. f4 {[%clk 0:02:54.2]}
8... exf4 {[%clk 0:02:49.2]} 9. Bxf4 {[%clk 0:02:55.1]} 9... Nbd7 {[%clk
0:02:48.4]} 10. O-O {[%clk 0:02:55]} 10... Ne5 {[%clk 0:02:45.8]} 11. Qe1 {[%clk
0:02:46.3]} 11... Be7 {[%clk 0:02:43.2]} 12. Rd1 {[%clk 0:02:44.5]} 12... Qc7
{[%clk 0:02:39.6]} 13. Nd4 {[%clk 0:02:40.1]} 13... O-O {[%clk 0:02:34.9]} 14.
h3 {[%clk 0:02:27]} 14... b5 {[%clk 0:02:32.4]} 15. a3 {[%clk 0:02:21]} 15...
Nc4 {[%clk 0:02:20.5]} 16. Bc1 {[%clk 0:02:08]} 16... Rad8 {[%clk 0:02:13.4]}
17. Qg3 {[%clk 0:02:02]} 17... Ne5 {[%clk 0:01:49.1]} 18. Bh6 {[%clk 0:01:44.5]}
18... Ng6 {[%clk 0:01:47]} 19. Bg5 {[%clk 0:01:41.7]} 19... h6 {[%clk
0:01:33.4]} 20. Bxf6 {[%clk 0:01:17]} 20... Bxf6 {[%clk 0:01:01]} 21. Nxe6
{[%clk 0:01:15.1]} 21... Qb6+ {[%clk 0:01:01]} 22. Kh1 {[%clk 0:01:06.7]} 22...
Be5 {[%clk 0:00:56.5]} 23. Qg4 {[%clk 0:00:59.6]} 23... Bxc3 {[%clk 0:00:25.9]}
24. bxc3 {[%clk 0:00:52.4]} 24... Ne5 {[%clk 0:00:23.5]} 25. Qxg7# {[%clk
0:00:52.1]} 1-0

[Event "Betsys MČR v online bleskovém šachu 2021"]
[Site "Chess.com"]
[Date "2021.04.17"]
[Round "1"]
[White "kecalk"]
[Black "tkokosek007"]
[Result "1-0"]
[WhiteElo "2096"]
[BlackElo "1402"]
[TimeControl "180+1"]
[EndTime "9:06:32 PDT"]
[Termination "Uživatel kecalk zvítězil na čas"]

1. c4 {[%clk 0:02:58.4]} 1... e5 {[%clk 0:02:57.3]} 2. Nc3 {[%clk 0:02:58.1]}
2... Bc5 {[%clk 0:02:55.3]} 3. Nf3 {[%clk 0:02:51.4]} 3... d6 {[%clk 0:02:53.3]}
4. e3 {[%clk 0:02:46.9]} 4... Nf6 {[%clk 0:02:41.1]} 5. d4 {[%clk 0:02:46.4]}
5... exd4 {[%clk 0:02:39.8]} 6. exd4 {[%clk 0:02:46.1]} 6... Bb6 {[%clk
0:02:39.7]} 7. Bd3 {[%clk 0:02:46.8]} 7... Bg4 {[%clk 0:02:29.1]} 8. O-O {[%clk
0:02:47.7]} 8... O-O {[%clk 0:02:28]} 9. Be3 {[%clk 0:02:44.1]} 9... Nbd7 {[%clk
0:02:25.2]} 10. h3 {[%clk 0:02:44.1]} 10... Bh5 {[%clk 0:02:24]} 11. b4 {[%clk
0:02:34.6]} 11... a6 {[%clk 0:02:08.7]} 12. a4 {[%clk 0:02:32]} 12... Re8 {[%clk
0:01:54.1]} 13. Re1 {[%clk 0:02:31.5]} 13... c5 {[%clk 0:01:35.9]} 14. bxc5
{[%clk 0:02:28.4]} 14... dxc5 {[%clk 0:01:35]} 15. d5 {[%clk 0:02:29.3]} 15...
Bc7 {[%clk 0:01:33.6]} 16. Rb1 {[%clk 0:02:13.2]} 16... Ne5 {[%clk 0:01:23.5]}
17. g4 {[%clk 0:02:08]} 17... Nxd3 {[%clk 0:01:16.1]} 18. Qxd3 {[%clk
0:02:04.8]} 18... Bg6 {[%clk 0:01:15.1]} 19. Qd2 {[%clk 0:02:03.8]} 19... Bxb1
{[%clk 0:01:13.4]} 20. Rxb1 {[%clk 0:02:04.7]} 20... Rb8 {[%clk 0:01:11.3]} 21.
Bg5 {[%clk 0:02:02.8]} 21... h6 {[%clk 0:01:06.8]} 22. Bh4 {[%clk 0:01:49.4]}
22... Qd6 {[%clk 0:00:47.9]} 23. Bg3 {[%clk 0:01:43.8]} 23... Qd7 {[%clk
0:00:47.5]} 24. d6 {[%clk 0:01:40.2]} 24... Ba5 {[%clk 0:00:39]} 25. Ne5 {[%clk
0:01:36.8]} 25... Bxc3 {[%clk 0:00:28.7]} 26. Qxc3 {[%clk 0:01:34.6]} 26... Qxd6
{[%clk 0:00:20.3]} 27. Nxf7 {[%clk 0:01:32.3]} 27... Qd4 {[%clk 0:00:04]} 28.
Qxd4 {[%clk 0:01:29.4]} 28... cxd4 {[%clk 0:00:03]} 29. Bxb8 {[%clk 0:01:30.3]}
1-0